fUSD/lending_fUSD_20241224
["ID","MTS","AMOUNT","RATE_DAILY","PERIOD"]
[346487711,1735007227344,1703.37,0.00026562,60]
[346487722,1735007432486,-535.32,0.00012751,2]
[346487724,1735007432496,-163.3,0.00012764,2]
[346487726,1735007432505,-505.05,0.00012768,2]
[346487728,1735007432514,-174.5,0.0001283,2]
[346487730,1735007432524,-250.0,0.00012879,2]
[346487731,1735007432533,-450.0,0.00013,2]
[346487733,1735007432542,-1000.0,0.00013068,2]
[346487734,1735007432551,-639.2,0.00013176,2]
[346487735,1735007432560,-1307.63,0.000135,2]
[346487741,1735007432631,-2995.2,0.000135,2]
[346487742,1735007432641,-657.535,0.0001354,2]
[346487743,1735007432651,-300.0,0.00013597,2]
[346487744,1735007432660,-2118.282,0.00013598,2]
[346487745,1735007432669,-154.457,0.00013598,2]
[346487746,1735007432678,-5694.64021944,0.00013598,2]
[346487747,1735007432688,-5000.0,0.00013598,2]
[346487748,1735007432697,-771.66,0.000136,2]
[346487749,1735007432706,-30000.0,0.000136,2]
[346487750,1735007432716,-21854.61,0.000136,4]
[346487751,1735007432725,-20000.0,0.000136,3]
[346487752,1735007432735,-1691.41,0.000136,2]
[346487753,1735007432744,-813.68,0.000136,2]
[346487754,1735007432753,-300.34,0.000136,2]
[346487755,1735007432763,-150.0,0.000136,2]
[346487756,1735007432773,-437.09,0.000136,2]
[346487757,1735007432782,-437.09,0.000136,2]
[346487758,1735007432791,-301.63,0.000136,2]
[346487759,1735007432801,-437.09,0.000136,2]
[346487760,1735007432810,-716.25,0.000136,2]
[346487761,1735007432819,-302.33,0.000136,2]
[346487762,1735007432828,-874.0,0.000136,2]
[346487763,1735007432837,-200.0,0.000136,4]
[346487764,1735007432846,-289.73622162,0.00013604,2]
[346487765,1735007432856,-95.96269893,0.00013688,2]
[346487766,1735007432868,-446.92251568,0.00013688,2]
[346487767,1735007432878,-506.01296361,0.00013698,2]
[346487768,1735007432888,-498.28457929,0.00013698,2]
[346487769,1735007432897,-217.70232835,0.00013698,2]
[346487770,1735007432907,-628.43400505,0.00013698,2]
[346487771,1735007432916,-259.81883144,0.00013698,2]
[346487772,1735007432926,-500.0,0.00013698,2]
[346487773,1735007432935,-491.3235564,0.00013698,2]
[346487774,1735007432945,-504.19777953,0.00013698,2]
[346487775,1735007432954,-500.0,0.00013698,2]
[346487776,1735007432962,-500.0,0.00013698,2]
[346487777,1735007432972,-500.0,0.00013698,2]
[346487778,1735007432982,-508.78869568,0.00013698,2]
[346487779,1735007432991,-500.0,0.00013698,2]
[346487780,1735007433000,-507.60840689,0.00013698,2]
[346487781,1735007433009,-503.75273957,0.00013698,2]
[346487782,1735007433018,-510.09593091,0.00013698,2]
[346487783,1735007433027,-504.65495876,0.00013698,2]
[346487784,1735007433036,-618.88,0.00013698,2]
[346487785,1735007433046,-505.85925641,0.00013698,2]
[346487786,1735007433056,-508.25615188,0.00013698,2]
[346487787,1735007433065,-506.57759207,0.00013698,2]
[346487788,1735007433075,-500.0,0.00013698,2]
[346487789,1735007433084,-2000.0,0.00013698,2]
[346487790,1735007433094,-200.0,0.00013698,2]
[346487791,1735007433103,-608.37980251,0.00013698,2]
[346487792,1735007433112,-509.12015464,0.00013698,2]
[346487793,1735007433122,-500.0,0.00013698,2]
[346487794,1735007433132,-511.13772653,0.00013698,2]
[346487795,1735007433142,-506.20279763,0.00013698,2]
[346487796,1735007433151,-507.06146841,0.00013698,2]
[346487797,1735007433160,-500.0,0.00013698,2]
[346487798,1735007433169,-504.39673755,0.00013698,2]
[346487799,1735007433179,-500.0,0.00013698,2]
[346487800,1735007433188,-616.73,0.00013698,2]
[346487801,1735007433198,-508.9118861,0.00013698,2]
[346487802,1735007433207,-500.0,0.00013698,2]
[346487803,1735007433216,-505.67989219,0.00013698,2]
[346487804,1735007433226,-652.108415,0.00013698,2]
[346487805,1735007433235,-500.0,0.00013698,2]
[346487806,1735007433245,-546.46,0.00013698,2]
[346487807,1735007433254,-687.91,0.00013698,2]
[346487808,1735007433264,-500.0,0.00013698,2]
[346487809,1735007433273,-644.092414,0.00013698,2]
[346487810,1735007433282,-500.0,0.00013698,2]
[346487811,1735007433292,-509.46846036,0.00013698,2]
[346487812,1735007433301,-500.0,0.00013698,2]
[346487813,1735007433311,-505.6059365,0.00013698,2]
[346487814,1735007433320,-500.0,0.00013698,2]
[346487815,1735007433330,-504.76375211,0.00013698,2]
[346487816,1735007433339,-546.67,0.00013698,2]
[346487817,1735007433349,-500.0,0.00013698,2]
[346487818,1735007433359,-500.0,0.00013698,2]
[346487819,1735007433369,-500.0,0.00013698,2]
[346487820,1735007433380,-553.98,0.00013698,2]
[346487821,1735007433390,-506.12597695,0.00013698,2]
[346487822,1735007433404,-597.92,0.00013698,2]
[346487823,1735007433414,-506.82702713,0.00013698,2]
[346487824,1735007433423,-505.87840113,0.00013698,2]
[346487825,1735007433432,-500.0,0.00013698,2]
[346487826,1735007433442,-444.36234732,0.00013698,2]
[346487827,1735007433452,-500.0,0.00013698,2]
[346487828,1735007433462,-507.52927921,0.00013698,2]
[346487829,1735007433473,-593.7,0.00013698,2]
[346487830,1735007433483,-506.41902245,0.00013698,2]
[346487831,1735007433493,-500.0,0.00013698,2]
[346487832,1735007433503,-500.0,0.00013698,2]
[346487834,1735007433513,-507.74257022,0.00013698,2]
[346487836,1735007433522,-506.27317832,0.00013698,2]
[346487838,1735007433532,-500.0,0.00013698,2]
[346487840,1735007433542,-510.12197902,0.00013698,2]
[346487842,1735007433551,-502.94326351,0.00013698,2]
[346487844,1735007433561,-500.0,0.00013698,2]
[346487846,1735007433571,-735.6,0.00013698,2]
[346487848,1735007433581,-500.0,0.00013698,2]
[346487850,1735007433591,-588.07,0.00013698,2]
[346487852,1735007433601,-500.0,0.00013698,2]
[346487854,1735007433611,-500.0,0.00013698,2]
[346487856,1735007433620,-500.0,0.00013698,2]
[346487857,1735007433630,-502.40481774,0.00013698,2]
[346487858,1735007433640,-500.0,0.00013698,2]
[346487859,1735007433650,-515.34889549,0.00013698,2]
[346487860,1735007433659,-505.62191348,0.00013698,2]
[346487861,1735007433670,-534.44,0.00013698,2]
[346487862,1735007433680,-500.0,0.00013698,2]
[346487863,1735007433690,-500.0,0.00013698,2]
[346487864,1735007433700,-215.31221629,0.00013698,2]
[346487865,1735007433710,-503.61016138,0.00013698,2]
[346487866,1735007433720,-511.22607944,0.00013698,2]
[346487867,1735007433730,-573.35,0.00013698,2]
[346487868,1735007433739,-500.0,0.00013698,2]
[346487869,1735007433749,-500.0,0.00013698,2]
[346487870,1735007433758,-511.01509365,0.00013698,2]
[346487871,1735007433768,-500.0,0.00013698,2]
[346487872,1735007433778,-500.0,0.00013698,2]
[346487873,1735007433787,-500.0,0.00013698,2]
[346487874,1735007433797,-500.0,0.00013698,2]
[346487875,1735007433806,-500.0,0.00013698,2]
[346487876,1735007433816,-500.0,0.00013698,2]
[346487877,1735007433826,-513.40970097,0.00013698,2]
[346487878,1735007433835,-506.34322848,0.00013698,2]
[346487879,1735007433845,-512.42587841,0.00013698,2]
[346487880,1735007433855,-507.60796154,0.00013698,2]
[346487881,1735007433865,-500.0,0.00013698,2]
[346487882,1735007433875,-647.46,0.00013698,2]
[346487883,1735007433884,-500.0,0.00013698,2]
[346487884,1735007433894,-397.39662673,0.00013698,2]
[346487885,1735007433903,-514.94798418,0.00013698,2]
[346487886,1735007433913,-500.0,0.00013698,2]
[346487887,1735007433923,-544.28824432,0.00013698,2]
[346487888,1735007433933,-500.0,0.00013698,2]
[346487889,1735007433942,-500.0,0.00013698,2]
[346487890,1735007433952,-500.0,0.00013698,2]
[346487891,1735007433962,-507.22399083,0.00013698,2]
[346487892,1735007433974,-500.0,0.00013698,2]
[346487893,1735007433983,-500.0,0.00013698,2]
[346487894,1735007433992,-500.0,0.00013698,2]
[346487895,1735007434002,-725.47,0.00013698,2]
[346487896,1735007434011,-500.0,0.00013698,2]
[346487897,1735007434021,-565.8890235,0.00013698,2]
[346487898,1735007434032,-505.91906403,0.00013698,2]
[346487899,1735007434042,-975.0,0.00013698,2]
[346487900,1735007434051,-500.0,0.00013698,2]
[346487901,1735007434061,-500.0,0.00013698,2]
[346487902,1735007434071,-500.0,0.00013698,2]
[346487903,1735007434081,-500.0,0.00013698,2]
[346487904,1735007434091,-507.396507,0.00013698,2]
[346487905,1735007434100,-738.64,0.00013698,2]
[346487906,1735007434110,-1453.63,0.00013698,2]
[346487907,1735007434120,-500.0,0.00013698,2]
[346487908,1735007434129,-511.01912382,0.00013698,2]
[346487909,1735007434139,-500.0,0.00013698,2]
[346487910,1735007434148,-505.19488365,0.00013698,2]
[346487911,1735007434158,-783.25,0.00013698,2]
[346487912,1735007434167,-500.0,0.00013698,2]
[346487913,1735007434176,-500.0,0.00013698,2]
[346487914,1735007434186,-508.61144028,0.00013698,2]
[346487915,1735007434196,-503.24649094,0.00013698,2]
[346487916,1735007434206,-531.97116081,0.00013698,2]
[346487917,1735007434217,-689.83,0.00013698,2]
[346487918,1735007434227,-500.0,0.00013698,2]
[346487919,1735007434238,-505.27196369,0.00013698,2]
[346487920,1735007434248,-504.01896188,0.00013698,2]
[346487921,1735007434258,-500.0,0.00013698,2]
[346487922,1735007434267,-553.21,0.00013698,2]
[346487923,1735007434277,-500.0,0.00013698,2]
[346487924,1735007434287,-504.45258853,0.00013698,2]
[346487925,1735007434296,-652.3,0.00013698,2]
[346487926,1735007434306,-558.43882252,0.00013698,2]
[346487927,1735007434327,-450.653,0.00013698,2]
[346487928,1735007434339,-59.19817748,0.00013698,2]
[346487929,1735007434349,-500.0,0.00013698,2]
[346487930,1735007434358,-500.0,0.00013698,2]
[346487931,1735007434368,-1683.36,0.00013698,2]
[346487932,1735007434377,-500.0,0.00013698,2]
[346487933,1735007434386,-500.0,0.00013698,2]
[346487934,1735007434400,-500.0,0.00013698,2]
[346487935,1735007434409,-579.52,0.00013698,2]
[346487936,1735007434419,-504.16218832,0.00013698,2]
[346487937,1735007434428,-622.4,0.00013698,2]
[346487938,1735007434438,-735.01,0.00013698,2]
[346487939,1735007434448,-505.69638077,0.00013698,2]
[346487940,1735007434458,-2000.0,0.00013698,2]
[346487941,1735007434470,-200.0,0.00013698,2]
[346487942,1735007434479,-512.18049228,0.00013698,2]
[346487943,1735007434489,-360.68625917,0.00013698,2]
[346487944,1735007434499,-500.0,0.00013698,2]
[346487945,1735007434508,-756.85,0.00013698,2]
[346487946,1735007434518,-243.50778363,0.00013698,2]
[346487947,1735007434531,-473.54221637,0.00013698,2]
[346487948,1735007434540,-615.06,0.00013698,2]
[346487949,1735007434549,-768.22,0.00013698,2]
[346487950,1735007434559,-500.0,0.00013698,2]
[346487951,1735007434568,-500.0,0.00013698,2]
[346487952,1735007434577,-500.0,0.00013698,2]
[346487953,1735007434587,-488.08447928,0.00013698,2]
[346487954,1735007434597,-546.03,0.00013698,2]
[346487955,1735007434607,-1363.94,0.00013698,2]
[346487956,1735007434616,-500.0,0.00013698,2]
[346487957,1735007434626,-468.32623959,0.00013698,2]
[346487958,1735007434765,-37.99752206,0.00013698,2]
[346487959,1735007434774,-1151.36948194,0.00013698,2]
[346487960,1735007434786,-963.87051806,0.00013698,2]
[346487961,1735007434795,-512.07870219,0.00013698,2]
[346487962,1735007434804,-500.0,0.00013698,2]
[346487963,1735007434813,-512.4725783,0.00013698,2]
[346487964,1735007434822,-329.49114938,0.00013698,2]
[346487965,1735007434852,-170.50885062,0.00013698,2]
[346487966,1735007434861,-502.17127307,0.00013698,2]
[346487967,1735007434871,-634.43,0.00013698,2]
[346487968,1735007434880,-503.19705706,0.00013698,2]
[346487969,1735007434890,-500.0,0.00013698,2]
[346487970,1735007434899,-514.48915671,0.00013698,2]
[346487971,1735007434909,-513.69264284,0.00013698,2]
[346487972,1735007434918,-1192.57,0.00013698,2]
[346487973,1735007434927,-500.0,0.00013698,2]
[346487974,1735007434936,-505.22185324,0.00013698,2]
[346487975,1735007434946,-507.17292759,0.00013698,2]
[346487976,1735007434955,-500.0,0.00013698,2]
[346487977,1735007434965,-503.57711796,0.00013698,2]
[346487978,1735007434976,-1089.65,0.00013698,2]
[346487979,1735007434985,-500.0,0.00013698,2]
[346487980,1735007434994,-500.0,0.00013698,2]
[346487981,1735007435004,-381.94178979,0.00013698,2]
[346487982,1735007435013,-501.54949472,0.00013698,2]
[346487983,1735007435023,-503.0499069,0.00013698,2]
[346487984,1735007435032,-500.0,0.00013698,2]
[346487985,1735007435041,-1043.27,0.00013698,2]
[346487986,1735007435051,-505.35815615,0.00013698,2]
[346487987,1735007435060,-500.0,0.00013698,2]
[346487988,1735007435070,-500.0,0.00013698,2]
[346487989,1735007435079,-507.54135328,0.00013698,2]
[346487990,1735007435089,-500.0,0.00013698,2]
[346487991,1735007435098,-500.0,0.00013698,2]
[346487992,1735007435108,-510.1527141,0.00013698,2]
[346487993,1735007435117,-506.83185889,0.00013698,2]
[346487994,1735007435127,-500.0,0.00013698,2]
[346487995,1735007435136,-500.0,0.00013698,2]
[346487996,1735007435145,-500.0,0.00013698,2]
[346487997,1735007435154,-500.0,0.00013698,2]
[346487998,1735007435163,-500.0,0.00013698,2]
[346487999,1735007435173,-500.0,0.00013698,2]
[346488000,1735007435182,-1426.47,0.00013698,2]
[346488001,1735007435191,-500.0,0.00013698,2]
[346488002,1735007435200,-693.79,0.00013698,2]
[346488003,1735007435209,-592.95,0.00013698,2]
[346488004,1735007435220,-500.0,0.00013698,2]
[346488005,1735007435230,-500.0,0.00013698,2]
[346488006,1735007435240,-1061.26,0.00013698,2]
[346488007,1735007435250,-868.59,0.00013698,2]
[346488008,1735007435260,-507.40471404,0.00013698,2]
[346488009,1735007435270,-500.0,0.00013698,2]
[346488010,1735007435279,-500.0,0.00013698,2]
[346488011,1735007435290,-511.40764819,0.00013698,2]
[346488012,1735007435299,-821.96,0.00013698,2]
[346488013,1735007435308,-352.67710776,0.00013698,2]
[346488014,1735007435317,-508.92868895,0.00013698,2]
[346488015,1735007435327,-678.27,0.00013698,2]
[346488016,1735007435336,-558.93,0.00013698,2]
[346488017,1735007435346,-500.0,0.00013698,2]
[346488018,1735007435355,-500.0,0.00013698,2]
[346488019,1735007435365,-500.0,0.00013698,2]
[346488020,1735007435374,-500.0,0.00013698,2]
[346488021,1735007435384,-500.0,0.00013698,2]
[346488022,1735007435394,-498.83596519,0.00013698,2]
[346488023,1735007435409,-504.35099528,0.00013698,2]
[346488024,1735007435418,-500.0,0.00013698,2]
[346488025,1735007435428,-500.0,0.00013698,2]
[346488026,1735007435438,-598.82,0.00013698,2]
[346488027,1735007435448,-500.0,0.00013698,2]
[346488028,1735007435457,-535.47,0.00013698,2]
[346488029,1735007435468,-500.0,0.00013698,2]
[346488030,1735007435479,-500.0,0.00013698,2]
[346488031,1735007435488,-505.53518579,0.00013698,2]
[346488032,1735007435498,-500.0,0.00013698,2]
[346488033,1735007435507,-1017.52,0.00013698,2]
[346488034,1735007435516,-1099.52,0.00013698,2]
[346488035,1735007435526,-569.88,0.00013698,2]
[346488036,1735007435536,-508.22211933,0.00013698,2]
[346488037,1735007435545,-1266.75,0.00013698,2]
[346488038,1735007435555,-503.01455783,0.00013698,2]
[346488039,1735007435731,-500.0,0.00013698,2]
[346488040,1735007435748,-500.0,0.00013698,2]
[346488041,1735007435757,-506.64550128,0.00013698,2]
[346488042,1735007435767,-502.01157286,0.00013698,2]
[346488043,1735007435776,-500.0,0.00013698,2]
[346488044,1735007435785,-508.38090328,0.00013698,2]
[346488045,1735007435795,-503.44398735,0.00013698,2]
[346488046,1735007435805,-503.0853064,0.00013698,2]
[346488047,1735007435815,-500.0,0.00013698,2]
[346488048,1735007435824,-894.34,0.00013698,2]
[346488049,1735007435833,-500.0,0.00013698,2]
[346488050,1735007435842,-160.66286138,0.00013698,2]
[346488051,1735007435851,-1090.38,0.00013698,2]
[346488052,1735007435860,-500.0,0.00013698,2]
[346488053,1735007435869,-359.70639924,0.00013698,2]
[346488054,1735007435879,-500.0,0.00013698,2]
[346488055,1735007435888,-500.0,0.00013698,2]
[346488056,1735007435898,-1064.1,0.00013698,2]
[346488057,1735007435907,-667.83,0.00013698,2]
[346488058,1735007435917,-500.0,0.00013698,2]
[346488059,1735007435926,-634.11,0.00013698,2]
[346488060,1735007435935,-500.0,0.00013698,2]
[346488061,1735007435944,-500.0,0.00013698,2]
[346488062,1735007435954,-848.75,0.00013698,2]
[346488063,1735007435963,-500.0,0.00013698,2]
[346488064,1735007435974,-593.38,0.00013698,2]
[346488065,1735007435982,-503.13481948,0.00013698,2]
[346488066,1735007435992,-504.62171837,0.00013698,2]
[346488067,1735007436001,-500.0,0.00013698,2]
[346488068,1735007436010,-505.25414089,0.00013698,2]
[346488069,1735007436019,-500.0,0.00013698,2]
[346488070,1735007436028,-617.7,0.00013698,2]
[346488071,1735007436037,-1042.67,0.00013698,2]
[346488072,1735007436046,-525.91049844,0.00013698,2]
[346488073,1735007436056,-622.81,0.00013698,2]
[346488074,1735007436065,-592.82,0.00013698,2]
[346488075,1735007436075,-500.0,0.00013698,2]
[346488076,1735007436084,-553.18,0.00013698,2]
[346488077,1735007436093,-500.0,0.00013698,2]
[346488078,1735007436103,-180.0649147,0.00013698,2]
[346488079,1735007436112,-500.0,0.00013698,2]
[346488080,1735007436121,-500.0,0.00013698,2]
[346488081,1735007436130,-507.14416928,0.00013698,2]
[346488082,1735007436139,-512.00789559,0.00013698,2]
[346488083,1735007436149,-500.0,0.00013698,2]
[346488084,1735007436158,-904.21,0.00013698,2]
[346488085,1735007436167,-614.04,0.00013698,2]
[346488086,1735007436176,-500.0,0.00013698,2]
[346488087,1735007436185,-500.0,0.00013698,2]
[346488088,1735007436194,-505.92031658,0.00013698,2]
[346488089,1735007436204,-500.0,0.00013698,2]
[346488090,1735007436213,-500.0,0.00013698,2]
[346488091,1735007436223,-500.0,0.00013698,2]
[346488092,1735007436233,-660.73,0.00013698,2]
[346488093,1735007436242,-500.0,0.00013698,2]
[346488094,1735007436251,-501.87720307,0.00013698,2]
[346488095,1735007436260,-514.82239714,0.00013698,2]
[346488096,1735007436269,-500.0,0.00013698,2]
[346488097,1735007436279,-668.21,0.00013698,2]
[346488098,1735007436288,-363.21315244,0.00013698,2]
[346488099,1735007436297,-500.0,0.00013698,2]
[346488100,1735007436307,-669.58,0.00013698,2]
[346488101,1735007436316,-500.0,0.00013698,2]
[346488102,1735007436325,-512.19346783,0.00013698,2]
[346488103,1735007436334,-500.0,0.00013698,2]
[346488104,1735007436344,-500.0,0.00013698,2]
[346488105,1735007436353,-1545.62,0.00013698,2]
[346488106,1735007436362,-507.38710001,0.00013698,2]
[346488107,1735007436372,-312.85496533,0.00013698,2]
[346488108,1735007436392,-193.10345709,0.00013698,2]
[346488109,1735007436402,-500.0,0.00013698,2]
[346488110,1735007436411,-994.78,0.00013698,2]
[346488111,1735007436420,-814.77,0.00013698,2]
[346488112,1735007436431,-519.75990408,0.00013698,2]
[346488113,1735007436440,-1452.44,0.00013698,2]
[346488114,1735007436448,-500.0,0.00013698,2]
[346488115,1735007436457,-500.0,0.00013698,2]
[346488116,1735007436467,-382.30640461,0.00013698,2]
[346488117,1735007436477,-500.0,0.00013698,2]
[346488118,1735007436486,-600.04,0.00013698,2]
[346488119,1735007436496,-500.0,0.00013698,2]
[346488120,1735007436506,-500.0,0.00013698,2]
[346488121,1735007436515,-994.95,0.00013698,2]
[346488122,1735007436525,-1120.06,0.00013698,2]
[346488123,1735007436534,-500.0,0.00013698,2]
[346488124,1735007436543,-500.0,0.00013698,2]
[346488125,1735007436553,-684.05,0.00013698,2]
[346488126,1735007436562,-507.91693207,0.00013698,2]
[346488127,1735007436572,-500.0,0.00013698,2]
[346488128,1735007436581,-500.0,0.00013698,2]
[346488129,1735007436591,-266.53658435,0.00013698,2]
[346488130,1735007436600,-795.23,0.00013698,2]
[346488131,1735007436610,-500.0,0.00013698,2]
[346488132,1735007436619,-498.69292853,0.00013698,2]
[346488133,1735007436628,-825.42,0.00013698,2]
[346488134,1735007436637,-513.82720786,0.00013698,2]
[346488135,1735007436647,-512.61712623,0.00013698,2]
[346488136,1735007436656,-1267.91,0.00013698,2]
[346488137,1735007436665,-500.0,0.00013698,2]
[346488138,1735007436674,-512.30111247,0.00013698,2]
[346488139,1735007436683,-1564.05,0.00013698,2]
[346488140,1735007436693,-500.0,0.00013698,2]
[346488141,1735007436702,-1598.3,0.00013698,2]
[346488142,1735007436711,-396.26101323,0.00013698,2]
[346488143,1735007436720,-500.0,0.00013698,2]
[346488144,1735007436729,-500.0,0.00013698,2]
[346488145,1735007436739,-510.05081505,0.00013698,2]
[346488146,1735007436748,-606.72,0.00013698,2]
[346488147,1735007436758,-507.41772621,0.00013698,2]
[346488148,1735007436768,-581.65,0.00013698,2]
[346488149,1735007436777,-1196.67,0.00013698,2]
[346488150,1735007436786,-1141.42,0.00013698,2]
[346488151,1735007436796,-629.93,0.00013698,2]
[346488152,1735007436805,-1273.09,0.00013698,2]
[346488153,1735007436815,-744.09,0.00013698,2]
[346488154,1735007436824,-500.96462951,0.00013698,2]
[346488155,1735007436833,-512.97400242,0.00013698,2]
[346488156,1735007436842,-500.0,0.00013698,2]
[346488157,1735007436852,-500.0,0.00013698,2]
[346488158,1735007436861,-500.0,0.00013698,2]
[346488159,1735007436871,-500.0,0.00013698,2]
[346488160,1735007436880,-505.68498737,0.00013698,2]
[346488161,1735007436889,-881.38,0.00013698,2]
[346488162,1735007436899,-513.88219067,0.00013698,2]
[346488163,1735007436908,-500.0,0.00013698,2]
[346488164,1735007436917,-844.67,0.00013698,2]
[346488165,1735007436927,-500.0,0.00013698,2]
[346488166,1735007436936,-500.0,0.00013698,2]
[346488167,1735007436946,-167.85533212,0.00013698,2]
[346488168,1735007436955,-967.85,0.00013698,2]
[346488169,1735007436965,-624.54,0.00013698,2]
[346488170,1735007436975,-507.70242891,0.00013698,2]
[346488171,1735007436984,-507.53443979,0.00013698,2]
[346488172,1735007436994,-500.0,0.00013698,2]
[346488173,1735007437003,-500.0,0.00013698,2]
[346488174,1735007437013,-504.50657016,0.00013698,2]
[346488175,1735007437022,-870.59,0.00013698,2]
[346488176,1735007437031,-502.11324023,0.00013698,2]
[346488177,1735007437047,-509.54768248,0.00013698,2]
[346488178,1735007437056,-501.75400272,0.00013698,2]
[346488179,1735007437066,-502.24120187,0.00013698,2]
[346488180,1735007437075,-743.33,0.00013698,2]
[346488181,1735007437084,-500.0,0.00013698,2]
[346488182,1735007437094,-500.0,0.00013698,2]
[346488183,1735007437103,-507.98687757,0.00013698,2]
[346488184,1735007437115,-507.45253944,0.00013698,2]
[346488185,1735007437124,-509.52219573,0.00013698,2]
[346488186,1735007437133,-619.7,0.00013698,2]
[346488187,1735007437143,-507.62083355,0.00013698,2]
[346488188,1735007437152,-500.0,0.00013698,2]
[346488189,1735007437162,-510.552742,0.00013698,2]
[346488190,1735007437171,-219.52597128,0.00013698,2]
[346488191,1735007437180,-513.65254711,0.00013698,2]
[346488192,1735007437190,-160.88586674,0.00013698,2]
[346488193,1735007437199,-504.75456204,0.00013698,2]
[346488194,1735007437208,-259.76683578,0.00013698,2]
[346488195,1735007437217,-589.61,0.00013698,2]
[346488196,1735007437227,-504.7725742,0.00013698,2]
[346488197,1735007437237,-500.0,0.00013698,2]
[346488198,1735007437247,-500.0,0.00013698,2]
[346488199,1735007437256,-507.22690855,0.00013698,2]
[346488200,1735007437265,-505.60761195,0.00013698,2]
[346488201,1735007437275,-500.0,0.00013698,2]
[346488202,1735007437284,-500.0,0.00013698,2]
[346488203,1735007437293,-505.51590139,0.00013698,2]
[346488204,1735007437302,-510.7513474,0.00013698,2]
[346488205,1735007437311,-663.65,0.00013698,2]
[346488206,1735007437321,-846.64,0.00013698,2]
[346488207,1735007437330,-500.0,0.00013698,2]
[346488208,1735007437339,-500.0,0.00013698,2]
[346488209,1735007437349,-506.93751472,0.00013698,2]
[346488210,1735007437358,-822.38,0.00013698,2]
[346488211,1735007437367,-505.43786677,0.00013698,2]
[346488212,1735007437376,-545.12,0.00013698,2]
[346488213,1735007437386,-505.94873245,0.00013698,2]
[346488214,1735007437396,-857.8,0.00013698,2]
[346488215,1735007437413,-500.0,0.00013698,2]
[346488216,1735007437422,-500.0,0.00013698,2]
[346488217,1735007437431,-500.0,0.00013698,2]
[346488218,1735007437441,-500.0,0.00013698,2]
[346488219,1735007437450,-508.42340917,0.00013698,2]
[346488220,1735007437459,-628.91,0.00013698,2]
[346488221,1735007437469,-500.03,0.00013698,2]
[346488222,1735007437479,-504.77118317,0.00013698,2]
[346488223,1735007437488,-500.0,0.00013698,2]
[346488224,1735007437498,-507.85359237,0.00013698,2]
[346488225,1735007437507,-500.0,0.00013698,2]
[346488226,1735007437517,-560.21,0.00013698,2]
[346488227,1735007437527,-510.17487033,0.00013698,2]
[346488228,1735007437536,-578.3,0.00013698,2]
[346488229,1735007437546,-664.63,0.00013698,2]
[346488230,1735007437555,-338.32899719,0.00013698,2]
[346488231,1735007437566,-500.0,0.00013698,2]
[346488232,1735007437575,-500.0,0.00013698,2]
[346488233,1735007437585,-502.49771484,0.00013698,2]
[346488234,1735007437594,-513.31291311,0.00013698,2]
[346488235,1735007437603,-1621.52,0.00013698,2]
[346488236,1735007437612,-506.1016086,0.00013698,2]
[346488237,1735007437622,-500.0,0.00013698,2]
[346488238,1735007437631,-5036.68231891,0.00013698,2]
[346488239,1735007437640,-513.25592495,0.00013698,2]
[346488240,1735007437650,-618.84,0.00013698,2]
[346488241,1735007437659,-500.0,0.00013698,2]
[346488242,1735007437668,-811.41,0.00013698,2]